fUSD/lending_fUSD_20250724
["ID","MTS","AMOUNT","RATE_DAILY","PERIOD"]
[374591675,1753366232144,-302.43,0.0002512,2]
[374591676,1753366232155,-300.99,0.00025157,2]
[374591677,1753366232168,-302.99,0.00025157,2]
[374591678,1753366232178,-303.04,0.0002522,2]
[374591679,1753366232187,-302.39,0.00025231,2]
[374591680,1753366232197,-368.44,0.00025279,2]
[374591681,1753366232208,-302.81,0.0002531,2]
[374591683,1753366232219,-300.59,0.0002531,2]
[374591684,1753366232229,-301.06,0.00025393,2]
[374591685,1753366232239,-301.79,0.00025411,2]
[374591687,1753366232250,-150.0,0.0002555,2]
[374591689,1753366232260,-305.56,0.00025553,2]
[374591690,1753366232270,-302.33,0.00025553,2]
[374591691,1753366232279,-150.99,0.00025786,2]
[374591692,1753366232289,-839.91269601,0.0002587,2]
[374591693,1753366232298,-150.0,0.00025892,2]
[374591694,1753366232308,-290.78,0.00025892,2]
[374591695,1753366232317,-150.0,0.00025892,2]
[374591696,1753366232327,-150.0,0.00025892,2]
[374591697,1753366232336,-565.05,0.000266,2]
[374591698,1753366232346,-1000.0,0.00026613,2]
[374591699,1753366232355,-150.0,0.0002673,2]
[374591700,1753366232365,-368.44,0.00027009,2]
[374591701,1753366232376,-210.8,0.000271,2]
[374591702,1753366232386,-10403.9803754,0.00027397,2]
[374591703,1753366232396,-152.97,0.000275,2]
[374591704,1753366232405,-272.57523,0.00027503,120]
[374591705,1753366232415,-575.84930637,0.00027561,2]
[374591706,1753366232427,-3553.15069363,0.00027561,2]
[374591707,1753366232437,-150.0,0.0002792,3]
[374591708,1753366232447,-500.0,0.00028003,120]
[374591709,1753366232457,-599.65,0.00028265,2]
[374591710,1753366232467,-5000.0,0.00028516,2]
[374591711,1753366232477,-150.0,0.00028583,2]
[374591712,1753366232487,-294.32,0.00028626,2]
[374591713,1753366232497,-368.44,0.0002874,2]
[374591714,1753366232508,-318.01,0.00028786,2]
[374591715,1753366232517,-150.0,0.00028892,2]
[374591716,1753366232527,-150.0,0.00028892,2]
[374591717,1753366232537,-150.0,0.000291,3]
[374591718,1753366232547,-1616.989,0.00029219,22]
[374591719,1753366232556,-159.78,0.00029219,22]
[374591720,1753366232566,-1000.0,0.00029274,2]
[374591721,1753366232576,-304.15,0.00029303,2]
[374591722,1753366232587,-150.0,0.00029347,2]
[374591723,1753366232598,-1389.18,0.00029595,30]
[374591724,1753366232608,-358.945256,0.00029603,120]
[374591725,1753366232618,-500.0,0.00029603,120]
[374591726,1753366232629,-500.0,0.00029603,120]
[374591727,1753366232639,-697.64,0.00029802,2]
[374591728,1753366232649,-230.03,0.00029807,2]
[374591729,1753366232660,-206.6124744,0.000299,21]
[374591731,1753366232670,-941.30704371,0.0003,2]
[374591733,1753366232679,-1087.47756934,0.0003,2]
[374591735,1753366232690,-152.97,0.0003,2]
[374591737,1753366232700,-150.0,0.00030111,2]
[374591739,1753366232711,-190.88310084,0.00030137,2]
[374591741,1753366232721,-150.0,0.0003029,3]
[374591743,1753366232730,-368.44,0.0003047,2]
[374591745,1753366232740,-4129.0,0.00030561,2]
[374591747,1753366232750,-437.5,0.000307,3]
[374591748,1753366232761,-150.0,0.00030874,2]
[374591749,1753366232771,-666.0,0.00031076,3]
[374591750,1753366232780,-150.0,0.0003147,3]
[374591752,1753366232791,-150.0,0.00031488,7]
[374591753,1753366232801,-150.0,0.00031638,2]
[374591754,1753366232811,-300.0,0.000317,5]
[374591755,1753366232821,-200.0,0.00031811,2]
[374591756,1753366232831,-150.0,0.00031892,2]
[374591757,1753366232841,-1000.0,0.00031936,2]
[374591758,1753366232850,-892.6540698,0.00031945,120]
[374591759,1753366232861,-511.0,0.00032102,2]
[374591760,1753366232871,-368.44,0.000322,2]
[374591761,1753366232884,-150.0,0.00032401,2]
[374591762,1753366232894,-152.97,0.000325,2]
[374591763,1753366232904,-150.0,0.0003265,3]
[374591764,1753366232913,-300.0,0.000327,7]
[374591765,1753366232923,-335.44,0.00032877,2]
[374591766,1753366232932,-1986.0,0.00033058,2]
[374591767,1753366232942,-150.0,0.00033165,2]
[374591768,1753366232951,-1986.0,0.00033398,2]
[374591769,1753366232961,-1695.15,0.000334,7]
[374591770,1753366232970,-2000.0,0.000334,2]
[374591771,1753366232979,-174.53,0.00033436,120]
[374591772,1753366232989,-500.0,0.000335,60]
[374591773,1753366232999,-300.0,0.000335,2]
[374591774,1753366233009,-300.0,0.000335,2]
[374591775,1753366233019,-300.0,0.000335,2]
[374591776,1753366233029,-300.0,0.000335,2]
[374591777,1753366233039,-326.96891093,0.000335,2]
[374591778,1753366233049,-500.0,0.00033516,120]
[374591779,1753366233059,-1500.0,0.00033552,120]
[374591780,1753366233070,-4129.0,0.00033561,2]
[374591781,1753366233081,-300.0,0.000337,8]
[374591782,1753366233091,-500.0,0.000337,60]
[374591783,1753366233102,-1448.01,0.00033705,30]
[374591784,1753366233112,-1448.01,0.00033705,30]
[374591785,1753366233122,-1448.01,0.00033705,30]
[374591786,1753366233136,-1448.01,0.00033705,30]
[374591787,1753366233146,-1986.0,0.00033739,2]
[374591788,1753366233157,-165.99707851,0.00033753,2]
[374591789,1753366233167,-500.0,0.000338,60]
[374591790,1753366233180,-150.0,0.0003384,3]
[374591791,1753366233190,-195.9659,0.000339,2]
[374591792,1753366233200,-500.0,0.000339,60]
[374591793,1753366233210,-400.0,0.00033925,2]
[374591794,1753366233221,-137.36963002,0.00033925,2]
[374591795,1753366233235,-262.63036998,0.00033925,2]
[374591796,1753366233245,-400.0,0.00033925,2]
[374591797,1753366233256,-400.0,0.00033925,2]
[374591798,1753366233266,-400.0,0.00033925,2]
[374591799,1753366233275,-400.0,0.00033925,2]
[374591800,1753366233285,-400.0,0.00033925,2]
[374591801,1753366233295,-400.0,0.00033925,2]
[374591802,1753366233305,-400.0,0.00033925,2]
[374591803,1753366233314,-400.0,0.00033925,2]
[374591804,1753366233324,-400.0,0.00033925,2]
[374591805,1753366233334,-400.0,0.00033925,2]
[374591806,1753366233344,-400.0,0.00033925,2]
[374591807,1753366233354,-400.0,0.00033925,2]
[374591808,1753366233364,-400.0,0.00033925,2]
[374591809,1753366233377,-400.0,0.00033925,2]
[374591810,1753366233387,-400.0,0.00033925,2]
[374591811,1753366233397,-400.0,0.00033925,2]
[374591812,1753366233408,-294.40296949,0.00033925,2]
[374591813,1753366233418,-150.0,0.00033928,2]
[374591814,1753366233428,-142.89440902,0.00033931,2]
[374591815,1753366233444,-225.54559098,0.00033931,2]
[374591816,1753366233455,-844.102398,0.00033949,30]
[374591817,1753366233465,-757.56763088,0.00033979,30]
[374591818,1753366239107,-3007.01,0.00028,2]
[374591819,1753366239117,-690.44236912,0.00033979,30]
[374591820,1753366239129,-1448.01,0.00033979,30]
[374591821,1753366239139,-9907.45558356,0.00034,2]
[374591822,1753366239149,-3709.26169182,0.00034,30]
[374592054,1753366241421,-863.0,0.00024561,2]
[374592055,1753366241432,-320.402,0.00027561,2]
[374592056,1753366241441,-150.0,0.00033979,120]
[374592057,1753366241451,-13453.19799014,0.00034,30]
[374592058,1753366241462,-11229.16538684,0.00034,30]
[374592059,1753366241474,-3565.6321771,0.00034,30]
[374592060,1753366241485,-277.44891263,0.00034,30]
[374592061,1753366241496,-549.55140318,0.00034,30]
[374592067,1753366241573,-401.44214624,0.00034,30]
[374592308,1753366243847,-2993.20060151,0.00028,2]
[374592310,1753366243859,-6.79939849,0.00028,2]
[374592312,1753366243869,-999.98,0.00028,2]
[374592314,1753366243879,-1258.54244366,0.0003,4]
[374592318,1753366243908,-1024.04291605,0.0003,4]
[374592320,1753366243920,-927.77,0.0003,4]
[374592322,1753366243932,-1565.73217009,0.0003,4]
[374592324,1753366243941,-591.31341522,0.00034,30]
[374592340,1753366244083,-573.26033588,0.00034,30]
[374592342,1753366244093,-12.53966413,0.00034018,2]
[374592348,1753366244144,-275.46033587,0.00034018,2]
[374592350,1753366244154,-500.0,0.00034025,120]
[374592352,1753366244164,-1986.0,0.0003408,2]
[374592354,1753366244177,-625.17669014,0.0003408,2]
[374592356,1753366244187,-511.0,0.00034095,6]
[374592358,1753366244198,-1605.44,0.00034105,2]
[374592360,1753366244209,-357.65,0.00034178,2]
[374592362,1753366244219,-500.0,0.00034252,2]
[374592364,1753366244228,-1448.01,0.00034253,30]
[374592366,1753366244238,-1448.01,0.00034253,30]
[374592368,1753366244248,-343.30784299,0.00034264,2]
[374592370,1753366244259,-177.53000776,0.00034264,2]
[374592372,1753366244269,-177.53000774,0.0003432,2]
[374592374,1753366244278,-1798.8851455,0.00034365,2]
[374592539,1753366245938,-1795.35459956,0.00034365,2]
[374592541,1753366245948,-4604.64540044,0.00034375,2]
[374592547,1753366245998,-5952.15889488,0.00034375,2]
[374592555,1753366246060,-592.0217608,0.00034375,2]
[374592557,1753366246072,-295.80356041,0.00034375,2]
[374592574,1753366246236,-927.79768934,0.00034375,2]
[374592582,1753366246298,-801.98866741,0.00034375,2]
[374592584,1753366246310,-2440.42,0.00034375,2]
[374592924,1753366570706,-152.5,0.00024561,2]
[374592925,1753366570736,-302.92,0.00024561,2]
[374592926,1753366570764,-303.63,0.00024561,2]
[374592927,1753366570793,-305.52,0.00024561,2]
[374592928,1753366570821,-300.88,0.00024561,2]
[374592929,1753366570848,-301.58,0.00024561,2]
[374592930,1753366570877,-301.46,0.00024561,2]
[374592931,1753366604827,-301.67,0.00024561,2]
[374592932,1753366605278,-304.11,0.00024561,2]
[374592933,1753366605309,-302.33,0.00024561,2]
[374592934,1753366693726,-302.94,0.00024672,2]
[374592935,1753366693755,-303.03,0.00024685,2]
[374592936,1753366693784,-304.41,0.00024755,2]
[374592937,1753366693812,-303.48,0.00024755,2]
[374592942,1753366906084,219.47,0.00027397,120]
[374592943,1753366989464,163.67,0.00013699,2]
[374592950,1753367163355,10557.59242623,8e-05,2]
[374592973,1753367315462,153.43,0.00025249,120]
[374592980,1753367370231,3000.0,0.00027391,120]
[374592986,1753367432098,-1000.0,0.00019899,2]
[374592988,1753367432109,-300.0,0.000199,2]
[374592989,1753367432119,-28206.50880003,0.000199,2]
[374592990,1753367432264,-2955.5,0.000199,2]
[374592991,1753367432276,-886.7000201,0.000199,2]
[374592992,1753367432312,-29502.5,0.000199,2]
[374592993,1753367432442,-35555.45950786,0.000199,2]
[374592994,1753367432452,-554.28660479,0.000199,2]
[374592995,1753367432462,-4263.16894374,0.000199,2]
[374592996,1753367432472,-300.0,0.0001995,2]
[374592997,1753367432482,-514.0,0.0001997,2]
[374592998,1753367432492,-360.94666612,0.00019973,2]
[374592999,1753367432505,-500.0,0.00019973,2]
[374593000,1753367432516,-500.0,0.00019973,2]
[374593001,1753367432525,-500.0,0.00019973,2]
[374593003,1753367432535,-476.47535254,0.00019973,2]
[374593005,1753367432545,-500.0,0.00019973,2]
[374593007,1753367432555,-500.0,0.00019973,2]
[374593008,1753367432564,-500.0,0.00019973,2]
[374593009,1753367432576,-316.15,0.00019975,3]
[374593010,1753367432586,-62528.47061453,0.00019985,2]
[374593011,1753367432596,-163.20553842,0.0001999,2]
[374593013,1753367432606,-45768.37599544,0.0002,2]
[374593015,1753367432622,-1157.85368114,0.0002,2]
[374593017,1753367432633,-3950.0,0.0002,2]
[374593019,1753367432643,-1265.27636486,0.0002,2]
[374593021,1753367432652,-4046.39542732,0.0002,2]
[374593023,1753367432663,-1021.12931694,0.0002,2]
[374593025,1753367432672,-55622.2903552,0.0002,2]
[374593026,1753367432681,-5772.0,0.0002001,2]
[374593028,1753367432691,-300.0,0.00020377,2]
[374593030,1753367432701,-156.14,0.0002047,2]
[374593032,1753367432711,-1000.0,0.00020521,2]
[374593034,1753367432721,-1000.0,0.00020521,2]
[374593052,1753367433175,-1000.0,0.00020521,2]
[374593053,1753367433197,-955.9349861,0.00020521,2]
[374593054,1753367433207,-506.2329408,0.00020521,2]
[374593055,1753367433217,-997.03153065,0.00020521,2]
[374593056,1753367433229,-2.96846935,0.00020521,2]
[374593057,1753367433240,-5000.0,0.00020613,2]
[374593058,1753367433250,-205.16345726,0.000209,4]
[374593059,1753367433261,-150.15,0.00020984,2]
[374593060,1753367433271,-500.0,0.00021068,2]
[374593061,1753367433281,-1500.0,0.00021068,2]
[374593062,1753367433291,-4000.0,0.00021541,4]
[374593063,1753367433301,-4263.16894371,0.00021543,2]
[374593064,1753367433312,-205.16345723,0.00021582,5]
[374593065,1753367433322,-300.0,0.00021889,2]
[374593066,1753367433332,-300.0,0.0002189,2]
[374593067,1753367433341,-5166.39012133,0.0002192,2]
[374593068,1753367433351,-162.0,0.00022,2]
[374593069,1753367433365,-205.16345723,0.00022264,6]
[374593070,1753367433375,-205.16345723,0.00022945,8]
[374593071,1753367433384,-159.0,0.0002318,2]
[374593072,1753367433394,-205.16345723,0.00023627,9]
[374593073,1753367433403,-12029.93042353,0.00024,4]
[374593074,1753367433413,-205.16345723,0.00024309,10]
[374593075,1753367433423,-156.0,0.0002437,2]
[374593076,1753367433432,-174.29,0.0002468,2]
[374593077,1753367433442,-304.12,0.00024685,2]
[374593078,1753367433452,-303.98,0.00024685,2]
[374593079,1753367433462,-301.64,0.00024685,2]
[374593080,1753367433471,-305.08,0.00024765,2]
[374593081,1753367433481,-205.16345723,0.00024991,12]
[374593082,1753367433493,-154.28,0.00025,2]
[374593083,1753367433507,-1001.21443408,0.00025,12]
[374593084,1753367433517,-211.01152796,0.00025127,2]
[374593085,1753367433527,-839.91269601,0.00025128,2]
[374593086,1753367433538,-366.39,0.00025182,2]
[374593087,1753367433549,-5000.0,0.00025356,2]
[374593088,1753367433559,-152.0,0.0002555,2]
[374593089,1753367433568,-205.16345723,0.00025673,13]
[374593090,1753367433578,-177.53000774,0.000259,2]
[374593091,1753367433589,-909.06,0.000261,2]
[374593092,1753367433599,-328.63,0.00026131,2]
[374593093,1753367433616,-250.0,0.00026131,2]
[374593094,1753367433627,-909.06,0.000263,2]
[374593095,1753367433637,-205.16345723,0.00026355,14]
[374593096,1753367433647,-14642.0,0.00026466,2]
[374593097,1753367433657,-284.52233746,0.00026528,2]
[374593098,1753367433667,-164.0307377,0.00026529,2]
[374593099,1753367433677,-959.0,0.00026629,2]
[374593100,1753367433687,-890.0,0.00026629,2]
[374593101,1753367433697,-1167.0,0.00026629,2]
[374593102,1753367433707,-953.0,0.00026629,2]
[374593103,1753367433718,-4872.705,0.00026629,2]
[374593104,1753367433728,-21379.0,0.00026629,2]
[374593105,1753367433739,-500.0,0.00026673,2]
[374593106,1753367433750,-500.0,0.00026673,2]
[374593107,1753367433760,-500.0,0.00026673,2]
[374593108,1753367433771,-500.0,0.00026673,2]
[374593109,1753367433781,-500.0,0.00026673,2]
[374593110,1753367433791,-500.0,0.00026673,2]
[374593111,1753367433801,-500.0,0.00026673,2]
[374593112,1753367433811,-500.0,0.00026673,2]
[374593113,1753367433822,-165.75,0.000267,7]
[374593114,1753367433832,-150.0,0.0002673,2]
[374593115,1753367433843,-366.39,0.00026913,2]
[374593116,1753367433853,-715.72,0.00027,2]
[374593117,1753367433866,-909.06,0.00027,2]
[374593118,1753367433876,-32580.3715936,0.00027,7]
[374593119,1753367433886,-839.91269601,0.00027,7]
[374593120,1753367433897,-205.16345723,0.00027036,16]
[374593121,1753367433908,-290.38,0.00027123,14]
[374593122,1753367433919,-290.38,0.00027123,14]
[374593123,1753367433929,-290.38,0.00027123,14]
[374593124,1753367433940,-290.38,0.00027123,14]
[374593125,1753367433950,-290.38,0.00027123,14]
[374593126,1753367433961,-290.38,0.00027123,14]
[374593127,1753367433971,-290.38,0.00027123,14]
[374593128,1753367433982,-290.38,0.00027123,14]
[374593129,1753367433992,-150.0,0.000272,2]
[374593130,1753367434003,-501.60948311,0.00027221,2]
[374593131,1753367434013,-500.0,0.00027221,2]
[374593132,1753367434023,-507.77262756,0.00027221,2]
[374593133,1753367434034,-500.0,0.00027221,2]
[374593134,1753367434047,-500.0,0.00027221,2]
[374593135,1753367434058,-501.52411017,0.00027221,2]
[374593136,1753367434068,-500.0,0.00027221,2]
[374593137,1753367434079,-150.99,0.00027397,2]
[374593138,1753367434089,-7045.7115252,0.00027397,10]
[374593139,1753367434103,-3797.9684748,0.00027397,10]
[374593140,1753367434117,-178.28463294,0.000274,2]
[374593141,1753367434128,-154.28,0.000275,2]
[374593142,1753367434138,-4000.0,0.00027694,4]
[374593143,1753367434149,-163.63,0.00027717,2]
[374593144,1753367434161,-205.16345723,0.00027718,17]
[374593145,1753367434173,-150.0,0.0002792,3]
[374593146,1753367434184,-284.52233744,0.00028032,2]
[374593147,1753367434194,-200.0,0.00028062,2]
[374593148,1753367434206,-200.0,0.00028062,2]
[374593149,1753367434217,-200.0,0.00028062,2]
[374593150,1753367434228,-200.0,0.00028062,2]
[374593151,1753367434239,-200.0,0.00028062,2]
[374593152,1753367434249,-200.0,0.00028062,2]
[374593153,1753367434260,-200.0,0.00028062,2]
[374593154,1753367434270,-200.0,0.00028062,2]
[374593155,1753367434280,-200.0,0.00028062,2]
[374593156,1753367434291,-200.0,0.00028062,2]
[374593157,1753367434301,-200.0,0.00028062,2]
[374593158,1753367434311,-200.0,0.00028062,2]
[374593159,1753367434321,-200.0,0.00028062,2]
[374593160,1753367434332,-200.0,0.00028062,2]
[374593161,1753367434342,-200.0,0.00028062,2]
[374593162,1753367434352,-200.0,0.00028062,2]
[374593163,1753367434364,-200.0,0.00028062,2]
[374593164,1753367434374,-200.0,0.00028062,2]
[374593165,1753367434385,-200.0,0.00028062,2]
[374593166,1753367434395,-200.0,0.00028062,2]
[374593167,1753367434405,-200.0,0.00028062,2]
[374593168,1753367434415,-200.0,0.00028062,2]
[374593169,1753367434425,-200.0,0.00028062,2]
[374593170,1753367434435,-200.0,0.00028062,2]
[374593171,1753367434445,-200.0,0.00028062,2]
[374593172,1753367434455,-200.0,0.00028062,2]
[374593173,1753367434464,-200.0,0.00028062,2]
[374593174,1753367434475,-200.0,0.00028062,2]
[374593175,1753367434486,-200.0,0.00028062,2]
[374593176,1753367434496,-200.0,0.00028062,2]
[374593177,1753367434510,-200.0,0.00028062,2]
[374593178,1753367434520,-200.0,0.00028062,2]
[374593179,1753367434531,-200.0,0.00028062,2]
[374593180,1753367434542,-200.0,0.00028062,2]
[374593181,1753367434553,-200.0,0.00028062,2]
[374593182,1753367434563,-185.0,0.00028062,2]
[374593183,1753367434573,-205.16345723,0.000284,19]
[374593184,1753367434584,-165.75,0.000284,7]
[374593185,1753367434594,-366.39,0.00028643,2]
[374593186,1753367434606,-175.254084,0.00028712,120]
[374593187,1753367434620,-157.65680492,0.000289,2]
[374593188,1753367434631,-150.0,0.00028931,2]
[374593189,1753367434642,-269.45436707,0.00028973,2]
[374593190,1753367434652,-10635.04228821,0.0002899,3]
[374593191,1753367434666,-5907.0821963,0.0002899,3]
[374593207,1753367438556,-171.56146879,0.00019999,2]
[374593209,1753367438566,-500.0,0.00019999,2]
[374593211,1753367438576,-347.34638023,0.00019999,2]
[374593213,1753367438586,-213.18615678,0.00019999,2]
[374593215,1753367438595,-500.0,0.00019999,2]
[374593217,1753367438604,-500.0,0.00019999,2]
[374593218,1753367438615,-500.0,0.00019999,2]
[374593219,1753367438624,-388.91015792,0.00019999,2]
[374593220,1753367438634,-4263.16894371,0.00023187,2]
[374593221,1753367438643,-4044.03001366,0.00026629,2]
[374593222,1753367438685,-84.96998634,0.00026629,2]
[374593223,1753367438695,-290.38,0.00027123,14]
[374593224,1753367438705,-290.38,0.00027123,14]
[374593225,1753367438714,-290.38,0.00027123,14]
[374593226,1753367438724,-290.38,0.00027123,14]
[374593228,1753367438733,-290.38,0.00027123,14]
[374593230,1753367438742,-290.38,0.00027123,14]
[374593232,1753367438751,-290.38,0.00027123,14]
[374593234,1753367438761,-290.38,0.00027123,14]
[374593236,1753367438770,-200.31957434,0.00027123,14]
[374593238,1753367438782,-90.06042566,0.00027123,14]
[374593240,1753367438792,-290.38,0.00027123,14]
[374593242,1753367438802,-290.38,0.00027123,14]
[374593244,1753367438812,-1283.98904494,0.0002899,3]
[374593246,1753367438823,-1786.54926343,0.0002899,3]
[374593248,1753367438840,-1771.09,0.0002899,3]
[374593251,1753367438852,-1943.46898318,0.0002899,3]
[374593253,1753367438866,-1430.62026823,0.0002899,3]
[374593255,1753367438882,-252.35315091,0.0002899,3]
[374593257,1753367438893,-294.75802627,0.0002899,3]
[374593258,1753367438904,-833.69583873,0.0002899,3]
[374593405,1753367440425,-51835.39089092,0.0002899,3]
[374593407,1753367440439,-2966.97289184,0.0002899,3]
[374593410,1753367440454,-1891.83830736,0.0002899,3]
[374593412,1753367440467,-1740.0911033,0.0002899,3]
[374593415,1753367440482,-1199.30233872,0.0002899,3]
[374593417,1753367440503,-1034.0,0.0002899,3]
[374593419,1753367440515,-841.28193972,0.0002899,3]
[374593422,1753367440529,-170006.5389092,0.0002899,3]
[374593424,1753367440549,-14710.4000024,0.0002899,3]
[374593426,1753367440561,-37811.39751534,0.0002899,3]
[374593428,1753367440575,-320011.157945,0.0002899,3]
[374593430,1753367440585,-151.0,0.0002899,7]
[374593432,1753367440596,-26354.70330967,0.00029,2]
[374593434,1753367440606,-1020.84,0.00029,7]
[374593436,1753367440617,-205.16345723,0.00029082,20]
[374593438,1753367440627,-150.0,0.000291,3]
[374593440,1753367440637,-1697.838,0.00029224,22]
[374593442,1753367440647,-159.78,0.00029224,22]
[374593444,1753367440657,-5800.0,0.00029268,2]
[374593446,1753367440666,-5800.0,0.00029276,2]
[374593448,1753367440676,-600.78,0.00029462,7]
[374593450,1753367440685,-3671.2203,0.00029529,2]
[374593452,1753367440695,-284.52233744,0.00029537,2]
[374593454,1753367440704,-303.878,0.00029629,2]
[374593456,1753367440713,-21379.0,0.00029629,2]
[374593458,1753367440723,-4129.0,0.00029629,2]
[374593460,1753367440733,-150.0,0.00029704,2]
[374593462,1753367440742,-205.16345723,0.00029764,21]
[374593464,1753367440752,-909.06,0.000298,2]
[374593466,1753367440761,-165.75,0.000298,7]
[374593468,1753367440771,-76691.99356211,0.000299,2]
[374593470,1753367440781,-154.28,0.0003,2]
[374593472,1753367440790,-1000.0,0.0003,2]
[374593474,1753367440799,-4299.21928904,0.0003001,2]
[374593476,1753367440809,-1420.94,0.00030018,30]
[374593478,1753367440818,-1000.0,0.00030037,2]
[374593480,1753367440827,-196.48396432,0.0003013,2]
[374593482,1753367440837,-200.15392849,0.0003013,2]
[374593484,1753367440846,-209.76929756,0.00030137,2]
[374593486,1753367440855,-1880.0,0.00030137,120]
[374593488,1753367440865,-169.90836248,0.00030192,30]
[374593490,1753367440875,-1020.84,0.000302,7]
[374593492,1753367440884,-232.96820497,0.00030262,2]
[374593494,1753367440893,-156.61,0.00030281,2]
[374593496,1753367440904,-150.0,0.0003029,3]
[374593498,1753367440913,-500.0,0.00030312,120]
[374593500,1753367440923,-500.0,0.00030312,120]
[374593502,1753367440932,-500.0,0.00030312,120]
[374593504,1753367440942,-3542.43,0.00030344,2]
[374593506,1753367440952,-366.39,0.00030373,2]
[374593508,1753367440961,-156.61,0.00030432,2]
[374593510,1753367440971,-205.16345723,0.00030445,23]
[374593512,1753367440980,-14440.72,0.00030472,2]
[374593514,1753367440990,-150.0,0.00030477,2]
[374593517,1753367441000,-156.61,0.00030583,2]
[374593519,1753367441009,-437.5,0.000307,3]
[374593521,1753367441019,-150.0,0.00031019,7]
[374593523,1753367441028,-150.0,0.00031019,7]
[374593524,1753367441037,-150.0,0.00031019,7]
[374593526,1753367441050,-150.0,0.00031019,7]
[374593528,1753367441071,-284.52233744,0.00031041,2]
[374593530,1753367441081,-174.29,0.00031081,2]
[374593532,1753367441091,-165.75,0.000311,7]
[374593534,1753367441101,-205.16345723,0.00031127,24]
[374593537,1753367441111,-799.999999,0.0003121,2]
[374593538,1753367441122,-150.0,0.0003125,2]
[374593541,1753367441132,-150.0,0.0003147,3]
[374593543,1753367441141,-192.66349348,0.000315,2]
[374593545,1753367441151,-150.0,0.000315,2]
[374593547,1753367441160,-1020.84,0.000315,7]
[374593549,1753367441173,-500.0,0.00031534,2]
[374593550,1753367441182,-153.43,0.00031561,120]
[374593553,1753367441192,-158.44,0.00031588,2]
[374593555,1753367441201,-300.0,0.000317,5]
[374593557,1753367441211,-328.31,0.00031794,2]
[374593559,1753367441220,-205.16345723,0.00031809,25]
[374593560,1753367441230,-1367.06418813,0.00031945,120]
[374593562,1753367441239,-41745.40607551,0.00032,2]
[374593565,1753367441249,-1546.23555819,0.00032,2]
[374593566,1753367441259,-150.0,0.00032023,2]
[374593568,1753367441268,-510.0,0.00032095,2]
[374593570,1753367441277,-503.0,0.00032095,2]
[374593572,1753367441288,-366.39,0.00032104,2]
[374593575,1753367441298,-200.0,0.00032184,2]
[374593577,1753367441308,-871.37957806,0.000323,2]
[374593579,1753367441318,-500.0,0.00032431,90]
[374593581,1753367441327,-205.16345723,0.00032491,27]
[374593583,1753367441337,-1020.84,0.000325,7]
[374593584,1753367441346,-154.28,0.000325,2]
[374593586,1753367441356,-284.52233744,0.00032545,2]
[374593588,1753367441365,-225.0,0.0003259,2]
[374593591,1753367441375,-21020.303,0.00032629,2]
[374593593,1753367441384,-4129.0,0.00032629,2]
[374593594,1753367441394,-150.0,0.0003265,3]
[374593596,1753367441404,-328.0,0.000327,7]
[374593599,1753367441413,-300.0,0.000327,7]
[374593600,1753367441423,-174.29,0.00032701,2]
[374593603,1753367441432,-1508.34,0.00032739,15]
[374593605,1753367441442,-1508.34,0.00032739,15]
[374593607,1753367441452,-1508.34,0.00032739,15]